bitfinex-derivatives/quotes_BTCF0:USTF0_20250903
["timestamp","ask_amount","ask_price","bid_price","bid_amount"]
[1756913631798,0.02504153,112190.0,112180.0,1.46079]
[1756913632398,0.02504153,112190.0,112180.0,0.36511]
[1756913632399,0.20101153,112190.0,112180.0,0.36511]
[1756913632598,0.20101153,112190.0,112180.0,1.21043]
[1756913634693,0.09257153,112190.0,112180.0,1.21043]
[1756913634893,0.02504153,112190.0,112180.0,1.21043]
[1756913635600,0.09257153,112190.0,112180.0,1.21043]
[1756913637101,0.09257153,112190.0,112180.0,1.47423]
[1756913637102,0.02504153,112190.0,112180.0,1.47423]
[1756913638005,0.02504153,112190.0,112180.0,2.31990206]
[1756913638799,0.02504153,112190.0,112180.0,1.72423]
[1756913639103,0.02504153,112190.0,112180.0,0.87891]
[1756913639303,0.02504153,112190.0,112180.0,1.47371]
[1756913640006,0.02504153,112190.0,112180.0,2.06938206]
[1756913640197,0.02504153,112190.0,112180.0,1.22458206]
[1756913640699,0.20101153,112190.0,112180.0,1.47335]
[1756913641094,0.09257153,112190.0,112180.0,1.47335]
[1756913642200,0.09257153,112190.0,112180.0,0.62891]
[1756913642406,0.20101153,112190.0,112180.0,1.47363]
[1756913643003,0.09257153,112190.0,112180.0,1.47363]
[1756913643299,0.02504153,112190.0,112180.0,1.47363]
[1756913646208,0.02504153,112190.0,112180.0,2.06930206]
[1756913646708,0.09257153,112190.0,112180.0,1.47307]
[1756913646907,0.09257153,112190.0,112180.0,0.62891]
[1756913647109,0.09257153,112190.0,112180.0,1.47267]
[1756913647406,0.24884907,112190.0,112180.0,0.26811]
[1756913647710,0.49884907,112190.0,112180.0,0.26811]
[1756913647905,0.81181153,112190.0,112180.0,1.11191]
[1756913648104,0.87561562,112190.0,112180.0,1.11191]
[1756913648307,0.51481562,112190.0,112180.0,1.11191]
[1756913648807,1.47128768,112190.0,112180.0,1.11175]
[1756913649006,1.4877533,112190.0,112180.0,0.79965296]
[1756913649402,1.4877533,112190.0,112180.0,0.8434]
[1756913649598,0.17615,112170.0,112160.0,0.6247]
[1756913649815,1.21733924,112170.0,112160.0,0.2638]
[1756913650002,1.21733924,112170.0,112160.0,1.10696]
[1756913650203,1.46733924,112170.0,112160.0,0.2638]
[1756913650409,1.46733924,112170.0,112160.0,1.1072]
[1756913650608,1.47667861,112170.0,112160.0,1.1072]
[1756913650810,0.88100655,112170.0,112160.0,0.8434]
[1756913651018,1.47667861,112170.0,112160.0,0.8434]
[1756913651609,0.87166718,112170.0,112160.0,0.8434]
[1756913651814,0.51086718,112170.0,112160.0,0.8434]
[1756913652010,0.51186718,112170.0,112160.0,0.8434]
[1756913652714,0.87366718,112170.0,112160.0,0.8434]
[1756913652910,0.88313422,112170.0,112160.0,0.8434]
[1756913653217,1.47880628,112170.0,112160.0,0.8434]
[1756913653617,0.88313422,112170.0,112160.0,0.8434]
[1756913656318,1.4628666,112170.0,112160.0,0.8434]
[1756913656912,0.07027,112160.0,112150.0,2.26264122]
[1756913657221,0.09131153,112160.0,112150.0,3.36800122]
[1756913659518,0.65993754,112160.0,112150.0,3.36800122]
[1756913661123,0.65993754,112160.0,112150.0,3.00720122]
[1756913661821,0.65993754,112160.0,112150.0,3.36800122]
[1756913662818,0.65993754,112160.0,112150.0,2.52644122]
[1756913663123,1.02073754,112160.0,112150.0,2.9874]
[1756913667525,1.02073754,112160.0,112150.0,2.98672]
[1756913668422,0.65993754,112160.0,112150.0,2.98672]
[1756913668723,1.02073754,112160.0,112150.0,2.98672]
[1756913670726,0.65993754,112160.0,112150.0,2.98672]
[1756913671526,0.65993754,112160.0,112150.0,3.34752]
[1756913672418,0.09131153,112160.0,112150.0,3.34752]
[1756913672723,0.65993754,112160.0,112150.0,3.34752]
[1756913673222,0.65993754,112160.0,112150.0,2.98672]
[1756913673623,1.31847351,112160.0,112150.0,2.14768]
[1756913673827,1.31847351,112160.0,112150.0,2.98632]
[1756913675331,1.88709952,112160.0,112150.0,1.88388]
[1756913675529,1.83936355,112160.0,112150.0,1.88388]
[1756913675720,1.9030392,112160.0,112150.0,1.88388]
[1756913675920,1.8871578,112160.0,112150.0,2.7222]
[1756913676325,1.83936355,112160.0,112150.0,2.7222]
[1756913677530,1.98210626,112160.0,112150.0,2.7222]
[1756913677830,1.55544135,112160.0,112150.0,2.7222]
[1756913678924,1.98210626,112160.0,112150.0,2.7222]
[1756913679233,2.04578191,112160.0,112150.0,2.7222]
[1756913680622,1.98210626,112160.0,112150.0,1.88388]
[1756913680827,2.14559044,112160.0,112150.0,2.72104]
[1756913684332,0.06321,112140.0,112130.0,0.2639]
[1756913684530,1.85689257,112140.0,112130.0,1.10152]
[1756913684725,1.40343135,112140.0,112130.0,1.10152]
[1756913684932,1.45126604,112140.0,112130.0,1.10152]
[1756913685838,0.59793622,112140.0,112130.0,1.10152]
[1756913686036,1.45126604,112140.0,112130.0,1.10152]
[1756913686331,1.45126604,112140.0,112130.0,0.2638]
[1756913686529,1.45126604,112140.0,112130.0,1.10184]
[1756913686730,1.45126604,112140.0,112130.0,1.10384]
[1756913687131,1.45126604,112140.0,112130.0,1.10684]
[1756913687831,1.52237718,112140.0,112130.0,1.10684]
[1756913688434,1.52224061,112140.0,112130.0,1.10684]
[1756913689238,1.52224061,112140.0,112130.0,1.10668]
[1756913691434,0.66891079,112140.0,112130.0,1.10668]
[1756913691633,1.52224061,112140.0,112130.0,1.10668]
[1756913691835,0.15579988,112140.0,112130.0,2.16528413]
[1756913692038,0.56646378,112140.0,112130.0,1.73861922]
[1756913692241,0.13979887,112140.0,112130.0,2.16528413]
[1756913692641,0.62967378,112140.0,112130.0,2.16528413]
[1756913692836,0.13979887,112140.0,112130.0,2.16528413]
[1756913693144,0.02090496,112140.0,112130.0,2.16528413]
[1756913694845,0.08026971,112200.0,112180.0,0.0891238]
[1756913695144,0.06321,112240.0,112210.0,0.47032845]
[1756913695345,0.06321,112260.0,112240.0,0.07377]
[1756913695538,0.16826,112270.0,112260.0,0.07377]
[1756913695739,0.16826,112270.0,112260.0,1.71456473]
[1756913695939,0.06321,112270.0,112260.0,1.71456473]
[1756913696344,0.06321,112270.0,112260.0,1.28789982]
[1756913696544,0.16826,112270.0,112260.0,1.27913]
[1756913696733,0.16826,112270.0,112260.0,2.13245982]
[1756913696938,0.16826,112270.0,112260.0,2.14638861]
[1756913697140,0.17126,112270.0,112260.0,2.14638861]
[1756913697343,0.17126,112270.0,112260.0,2.57305352]
[1756913697540,0.17126,112270.0,112260.0,1.9579143]
[1756913697947,0.17126,112270.0,112260.0,1.94398551]
[1756913698746,0.17726,112270.0,112260.0,1.94398551]
[1756913700245,0.17726,112270.0,112260.0,1.09942551]
[1756913700550,0.17726,112270.0,112260.0,1.94266551]
[1756913703445,0.07221,112270.0,112260.0,1.94266551]
[1756913703953,0.009,112270.0,112260.0,1.94266551]
[1756913704445,0.009,112270.0,112260.0,1.27781]
[1756913704649,0.009,112270.0,112260.0,1.94266551]
[1756913707865,0.009,112270.0,112260.0,2.45646551]
[1756913708861,0.009,112270.0,112260.0,2.47713144]
[1756913709059,0.06321,112310.0,112290.0,0.08351]
[1756913709356,0.16893,112320.0,112310.0,0.08351]
[1756913709562,0.16893,112320.0,112310.0,1.10916551]
[1756913710464,0.06321,112330.0,112310.0,1.94964551]
[1756913710758,0.06321,112330.0,112320.0,1.20148]
[1756913710759,0.42814926,112330.0,112320.0,1.20148]
[1756913711270,0.16893,112330.0,112320.0,1.20148]
[1756913711468,0.16893,112330.0,112320.0,0.3608]
[1756913711664,0.17790599,112330.0,112320.0,1.20148]
[1756913711860,0.17790599,112330.0,112320.0,0.3608]
[1756913712063,0.54290967,112330.0,112320.0,0.3608]
[1756913712258,0.54290967,112330.0,112320.0,1.21016]
[1756913712463,0.54290967,112330.0,112320.0,0.3608]
[1756913712662,0.54390967,112330.0,112320.0,0.3608]
[1756913712858,0.54390967,112330.0,112320.0,1.20996]
[1756913713056,0.22163723,112330.0,112320.0,1.20996]
[1756913713252,0.16993,112330.0,112320.0,1.87481551]
[1756913713457,0.17915752,112330.0,112320.0,1.20996]
[1756913713658,0.42915752,112330.0,112320.0,0.44431]
[1756913713885,0.42815752,112330.0,112320.0,1.20992]
[1756913714165,0.43015752,112330.0,112320.0,1.20988]
[1756913715559,0.49992366,112330.0,112320.0,1.20936]
[1756913716467,0.24992366,112330.0,112320.0,1.20936]
[1756913716664,0.24992366,112330.0,112320.0,1.87421551]
[1756913716870,1.15555165,112330.0,112320.0,0.3608]
[1756913717168,1.19828289,112330.0,112320.0,1.20904]
[1756913717366,0.53342738,112330.0,112320.0,1.20904]
[1756913717567,0.53342738,112330.0,112320.0,0.3608]
[1756913717870,0.16997,112320.0,112310.0,0.3608]
[1756913718069,1.08482551,112320.0,112310.0,0.3608]
[1756913718262,1.08720348,112320.0,112310.0,1.20912]
[1756913718462,1.08720348,112320.0,112310.0,0.3608]
[1756913718769,0.16997,112310.0,112300.0,0.3608]
[1756913718963,0.16997,112310.0,112300.0,1.20888]
[1756913719168,0.21507964,112310.0,112300.0,1.20888]
[1756913719957,0.21607964,112310.0,112300.0,1.87373551]
[1756913720162,0.06525,112310.0,112300.0,1.87373551]
[1756913720670,0.06625,112310.0,112300.0,1.87373551]
[1756913720876,0.17197,112310.0,112300.0,1.29156]
[1756913722465,0.06625,112310.0,112300.0,1.29156]
[1756913722677,0.002,112310.0,112300.0,2.20641551]
[1756913726961,0.002,112310.0,112300.0,1.54156]
[1756913727163,0.002,112310.0,112300.0,2.20641551]
[1756913727770,0.002,112310.0,112300.0,1.35861551]
[1756913728076,0.002,112310.0,112300.0,2.20881551]
[1756913728379,0.002,112310.0,112300.0,1.35861551]
[1756913728671,0.002,112310.0,112300.0,2.20881551]
[1756913729173,0.002,112310.0,112300.0,1.35861551]
[1756913729372,0.06625,112310.0,112300.0,1.35861551]
[1756913729577,0.06625,112310.0,112300.0,2.20817551]
[1756913729875,1.08682551,112310.0,112300.0,0.3608]
[1756913730169,0.46945761,112310.0,112300.0,1.21036]
[1756913731470,1.1972465,112310.0,112300.0,1.21036]
[1756913731871,1.1972465,112310.0,112300.0,0.84956]
[1756913732073,1.1972465,112310.0,112300.0,1.21036]
[1756913732473,0.9472465,112310.0,112300.0,1.21036]
[1756913733080,0.9472465,112310.0,112300.0,0.84956]
[1756913734471,0.88431312,112310.0,112300.0,0.84956]
[1756913734670,0.96303333,112310.0,112300.0,0.84956]
[1756913735471,0.96303333,112310.0,112300.0,0.93252]
[1756913735666,0.96303333,112310.0,112300.0,1.29332]
[1756913737076,0.96303333,112310.0,112300.0,1.21036]
[1756913739481,0.8925088,112310.0,112300.0,0.3608]
[1756913739686,0.8925088,112310.0,112300.0,1.20744]
[1756913740180,0.87755821,112310.0,112300.0,1.20744]
[1756913740770,1.12755821,112310.0,112300.0,1.20744]
[1756913741081,0.18159,112300.0,112290.0,0.43486]
[1756913741383,0.84206942,112300.0,112290.0,0.84608]
[1756913741682,0.24773844,112300.0,112290.0,0.92014]
[1756913742372,0.24773844,112300.0,112290.0,0.92114]
[1756913743281,0.24773844,112300.0,112290.0,0.84708]
[1756913743480,0.84206942,112300.0,112290.0,0.84708]
[1756913743983,0.84206942,112300.0,112290.0,0.92114]
[1756913744682,0.84206942,112300.0,112290.0,0.84496]
[1756913744883,0.18159,112290.0,112280.0,0.07406]
[1756913745082,0.83968448,112290.0,112280.0,0.91906]
[1756913745285,1.13955134,112290.0,112280.0,0.845]
[1756913745785,1.13955134,112290.0,112270.0,0.3608]
[1756913745987,0.82374493,112280.0,112270.0,0.43486]
[1756913746284,0.82850342,112280.0,112270.0,1.2799]
[1756913746885,0.23417244,112280.0,112270.0,1.2799]
[1756913748385,0.23417244,112280.0,112270.0,1.2829]
[1756913749179,0.24316285,112280.0,112270.0,1.2829]
[1756913749383,0.23840436,112280.0,112270.0,1.2829]
[1756913750686,0.23840436,112280.0,112270.0,0.9221]
[1756913750881,0.78491139,112280.0,112270.0,1.2829]
[1756913751283,0.23837875,112280.0,112270.0,1.2829]
[1756913751980,0.05678875,112280.0,112270.0,1.5329]
[1756913752177,0.04779834,112280.0,112270.0,1.5329]
[1756913752381,0.04779834,112280.0,112270.0,2.12723098]
[1756913752576,0.04779834,112290.0,112270.0,2.12723098]
[1756913752781,0.11442834,112290.0,112280.0,0.43486]
[1756913753085,0.04779834,112290.0,112280.0,0.43486]
[1756913753992,0.12374615,112290.0,112280.0,0.43486]
[1756913755389,0.12374615,112290.0,112280.0,0.43586]
[1756913756294,0.23870615,112290.0,112280.0,0.43586]
[1756913757894,0.11442834,112290.0,112280.0,0.43586]
[1756913758295,0.12348781,112290.0,112280.0,0.43586]
[1756913758691,0.22938834,112290.0,112280.0,1.27878]
[1756913759100,0.22938834,112290.0,112280.0,0.43586]
[1756913759297,0.200375,112290.0,112280.0,1.27878]
[1756913761091,0.200375,112290.0,112280.0,1.27826]
[1756913761287,0.200375,112290.0,112280.0,1.2783]
[1756913761288,1.09695166,112290.0,112280.0,1.2783]
[1756913761492,1.16071516,112290.0,112280.0,1.2783]
[1756913761703,1.16970144,112290.0,112280.0,0.43586]
[1756913761900,1.16970144,112290.0,112280.0,0.001]
[1756913762196,1.10593794,112290.0,112280.0,0.001]
[1756913762403,1.18465815,112290.0,112280.0,0.8432]
[1756913762702,1.10593794,112290.0,112280.0,0.8432]
[1756913763495,1.46673794,112290.0,112280.0,0.8428]
[1756913765202,0.26160696,112290.0,112280.0,0.91686]
[1756913765398,0.85593794,112290.0,112280.0,0.91686]
[1756913765595,0.26160696,112290.0,112280.0,0.91686]
[1756913765802,0.34032717,112290.0,112280.0,0.91686]
[1756913766194,0.34032717,112290.0,112280.0,0.07506]
[1756913766393,0.34032717,112290.0,112280.0,1.27818]
[1756913766903,0.22536717,112290.0,112280.0,1.27818]
[1756913767105,0.15829736,112290.0,112280.0,1.27818]
[1756913767716,0.14234555,112290.0,112280.0,1.27818]
[1756913768312,0.20936128,112290.0,112280.0,1.27814]
[1756913768510,0.20936128,112290.0,112280.0,0.43586]
[1756913768812,0.20936128,112290.0,112280.0,1.27778]
[1756913770219,0.20936128,112290.0,112280.0,0.43586]
[1756913770415,0.20936128,112290.0,112280.0,1.2775]
[1756913772715,0.80369226,112290.0,112280.0,0.43586]
[1756913773012,0.26160696,112290.0,112280.0,1.27642]
[1756913774719,0.85593794,112290.0,112280.0,1.27642]
[1756913775611,0.91983402,112290.0,112280.0,1.27642]
[1756913775919,0.32550304,112290.0,112280.0,1.27642]
[1756913776113,0.14391304,112290.0,112280.0,1.27642]
[1756913776417,0.09166736,112290.0,112280.0,1.27642]
[1756913776817,0.018785,112290.0,112280.0,1.52642]
[1756913777017,0.0267368,112290.0,112280.0,1.52642]
[1756913778420,0.0267368,112290.0,112280.0,0.68586]
[1756913778621,0.0267368,112290.0,112280.0,1.52522]
[1756913779119,0.0267368,112290.0,112280.0,1.5251]
[1756913779317,0.0267368,112290.0,112280.0,1.7889]
[1756913779516,0.0267368,112290.0,112280.0,0.94954]
[1756913779726,0.0267368,112290.0,112280.0,1.7889]
[1756913779916,0.0267368,112290.0,112280.0,0.69954]
[1756913780116,0.1985568,112290.0,112280.0,1.53846]
[1756913780516,0.17182,112290.0,112280.0,1.53846]
[1756913780719,0.23571608,112290.0,112280.0,1.53846]
[1756913781519,0.23571608,112290.0,112280.0,1.5383]
[1756913782725,0.17182,112290.0,112280.0,1.5383]
[1756913783021,0.23571608,112290.0,112280.0,1.5383]
[1756913783223,0.23571608,112290.0,112280.0,0.69954]
[1756913783828,0.23571608,112290.0,112280.0,1.53782]
[1756913784011,1.13229274,112290.0,112280.0,1.17702]
[1756913784927,0.53796176,112290.0,112280.0,1.17702]
[1756913785223,0.28796176,112290.0,112280.0,0.91322]
[1756913786420,0.28796176,112290.0,112280.0,1.27402]
[1756913786720,0.17836176,112290.0,112280.0,1.27402]
[1756913786923,0.12611608,112290.0,112280.0,1.27402]
[1756913787121,0.13522225,112300.0,112280.0,1.27402]
[1756913787418,0.24482225,112300.0,112290.0,0.3608]
[1756913789023,0.26415992,112300.0,112290.0,0.3608]
[1756913789323,0.26415992,112300.0,112290.0,0.6108]
[1756913789324,0.08323375,112300.0,112290.0,0.6108]
[1756913789826,0.02830544,112300.0,112290.0,0.6108]
[1756913790426,0.01933767,112300.0,112290.0,0.6108]
[1756913790618,0.001,112300.0,112290.0,0.6108]
[1756913790820,0.02033767,112300.0,112290.0,0.6108]
[1756913791012,0.02033767,112300.0,112290.0,0.3608]
[1756913791225,0.02033767,112300.0,112290.0,1.20513098]
[1756913792021,0.02133767,112300.0,112290.0,1.45821313]
[1756913792223,0.02133767,112300.0,112290.0,1.20513098]
[1756913792428,0.02133767,112300.0,112290.0,2.04361098]
[1756913792626,0.02133767,112300.0,112290.0,1.44928]
[1756913793327,0.02033767,112300.0,112290.0,1.44912]
[1756913793629,0.02033767,112300.0,112290.0,0.6108]
[1756913793926,0.02033767,112300.0,112290.0,1.44924]
[1756913794327,0.01933767,112300.0,112290.0,1.45024]
[1756913794626,0.06222,112300.0,112290.0,1.45004]
[1756913794825,0.08155767,112300.0,112290.0,1.45004]
[1756913795324,0.08155767,112300.0,112290.0,1.45204]
[1756913796214,0.19115767,112300.0,112290.0,0.3638]
[1756913796429,0.19115767,112300.0,112290.0,1.20188]
[1756913796624,0.19115767,112300.0,112290.0,1.2018]
[1756913796822,0.19115767,112300.0,112290.0,0.3638]
[1756913797021,0.25505375,112300.0,112290.0,1.20188]
[1756913797221,0.25505375,112300.0,112290.0,1.46568]
[1756913797422,0.2390922,112300.0,112290.0,1.46568]
[1756913797625,0.2390922,112300.0,112290.0,1.4656]
[1756913799017,0.1294922,112300.0,112290.0,1.4656]
[1756913799223,0.2407322,112300.0,112290.0,1.46516]
[1756913799423,0.2407322,112300.0,112290.0,0.6276]
[1756913799728,0.2407322,112300.0,112290.0,1.46508]
[1756913800130,0.1294922,112300.0,112290.0,1.46508]
[1756913801522,0.0672722,112300.0,112290.0,2.12980765]
[1756913801727,0.04793453,112300.0,112290.0,2.37980765]
[1756913802028,0.01933767,112300.0,112290.0,2.37980765]
[1756913802230,0.0672722,112300.0,112290.0,2.37980765]
[1756913802924,0.04793453,112300.0,112290.0,2.37980765]
[1756913803726,0.22102453,112300.0,112290.0,0.8776]
[1756913803922,0.2403622,112300.0,112290.0,1.71464]
[1756913804123,0.1291222,112300.0,112290.0,1.71464]
[1756913806331,0.0672722,112300.0,112290.0,1.71464]
[1756913806527,0.04793453,112300.0,112290.0,1.71464]
[1756913806931,0.04793453,112300.0,112290.0,2.37936765]
[1756913807434,0.10978453,112300.0,112290.0,1.71464]
[1756913807636,0.1291222,112300.0,112290.0,1.71464]
[1756913808736,0.1291222,112300.0,112290.0,1.71444]
[1756913808932,0.2403622,112300.0,112290.0,0.6276]
[1756913809137,0.90508985,112300.0,112290.0,0.6276]
[1756913809439,0.4903622,112300.0,112290.0,1.4644]
[1756913809635,1.15508985,112300.0,112290.0,1.4644]
[1756913810138,0.44242767,112300.0,112290.0,1.4644]
[1756913810528,0.44242767,112300.0,112290.0,1.46436]
[1756913811330,0.44242767,112300.0,112290.0,1.4644]
[1756913815441,0.01933767,112300.0,112290.0,2.12912765]
[1756913815645,0.01933767,112300.0,112290.0,1.4644]
[1756913815842,0.13859026,112310.0,112290.0,2.12912765]
[1756913816045,0.24983026,112310.0,112300.0,0.3608]
[1756913816244,0.25023043,112310.0,112300.0,0.3608]
[1756913816836,0.19319784,112310.0,112300.0,1.19644]
[1756913817046,0.2500637,112310.0,112300.0,1.19644]
[1756913817746,0.24119786,112310.0,112300.0,1.19644]
[1756913818049,0.0677458,112310.0,112300.0,2.11116765]
[1756913818346,0.01973784,112310.0,112300.0,2.11116765]
[1756913818738,0.04800796,112320.0,112300.0,2.11116765]
[1756913818939,0.04800796,112320.0,112310.0,1.02552765]
[1756913820648,0.88582561,112320.0,112310.0,1.19572]
[1756913820848,0.4908358,112320.0,112310.0,0.3608]
[1756913821248,0.4908358,112320.0,112310.0,1.19608]
[1756913821641,0.4908358,112320.0,112310.0,1.19808]
[1756913821949,1.15556345,112320.0,112310.0,1.199]
[1756913822246,1.10755549,112320.0,112310.0,1.19888]
[1756913822449,1.17145157,112320.0,112310.0,1.19888]
[1756913823852,1.17145157,112320.0,112310.0,1.19868]
[1756913824745,0.50672392,112320.0,112310.0,1.19868]
[1756913826150,1.17145157,112320.0,112310.0,1.1978]
[1756913826539,0.50672392,112320.0,112310.0,1.1978]
[1756913828756,0.50672392,112320.0,112310.0,0.3638]
[1756913828957,0.50672392,112320.0,112310.0,1.19764]
[1756913831062,0.50672392,112320.0,112310.0,1.19748]
[1756913831757,0.25672392,112320.0,112310.0,1.19748]
[1756913832851,0.92145157,112320.0,112310.0,0.3638]
[1756913833056,0.92145157,112320.0,112310.0,1.19748]
[1756913833457,0.92145157,112320.0,112310.0,0.3638]
[1756913833655,0.92145157,112320.0,112310.0,1.19748]
[1756913834157,0.92145157,112320.0,112310.0,0.3638]
[1756913834359,0.92145157,112320.0,112310.0,1.19748]
[1756913835063,0.85755549,112320.0,112310.0,1.19748]
[1756913836857,0.19282784,112320.0,112310.0,1.19748]
[1756913838250,0.85755549,112320.0,112310.0,1.19748]
[1756913840359,0.85755549,112320.0,112310.0,0.3638]
[1756913840561,0.96656078,112320.0,112310.0,1.19744]
[1756913840862,0.98138491,112320.0,112310.0,1.19744]
[1756913842047,0.9026647,112320.0,112310.0,1.19744]
[1756913842456,0.9026647,112320.0,112310.0,1.1974]
[1756913843258,0.9026647,112320.0,112310.0,0.3638]
[1756913843459,0.9026647,112320.0,112310.0,1.1974]
[1756913844257,0.23793705,112320.0,112310.0,1.1974]
[1756913845055,0.19282784,112320.0,112310.0,1.1974]
[1756913845455,1.04345578,112320.0,112310.0,1.1974]
[1756913846255,0.14557781,112320.0,112310.0,1.62271397]
[1756913846561,0.57089178,112320.0,112310.0,1.62271397]
[1756913846757,0.57089178,112320.0,112310.0,1.87271397]
[1756913846958,0.08372781,112320.0,112310.0,1.4474]
[1756913847166,0.08372781,112320.0,112310.0,1.87271397]
[1756913847656,0.06398997,112320.0,112310.0,1.87271397]
[1756913847859,0.48930394,112320.0,112310.0,1.87271397]
[1756913848162,0.56946178,112320.0,112310.0,1.44736]
[1756913848350,0.14414781,112320.0,112310.0,1.87267397]
[1756913848554,0.56946178,112320.0,112310.0,1.87267397]
[1756913849255,0.08015784,112320.0,112310.0,1.44736]
[1756913850565,0.08015784,112320.0,112310.0,0.6138]
[1756913850864,0.17968784,112320.0,112310.0,1.44736]
[1756913851267,0.08015784,112320.0,112310.0,1.44736]
[1756913851661,0.17968784,112320.0,112310.0,1.44736]
[1756913851862,0.84419557,112320.0,112310.0,0.3638]
[1756913852071,0.84419557,112320.0,112310.0,1.19736]
[1756913853166,0.84419557,112320.0,112310.0,0.3638]
[1756913853367,0.84419557,112320.0,112310.0,1.19736]
[1756913853865,0.84419557,112320.0,112310.0,0.3638]
[1756913854065,0.88930478,112320.0,112310.0,1.19736]
[1756913854471,0.95329475,112320.0,112310.0,1.19736]
[1756913855470,0.28878702,112320.0,112310.0,1.19736]
[1756913856264,0.95329475,112320.0,112310.0,1.19736]
[1756913857465,0.28878702,112320.0,112310.0,1.19736]
[1756913861871,0.08372781,112320.0,112310.0,1.44736]
[1756913862070,0.06398997,112320.0,112310.0,1.44736]
[1756913862673,0.12582997,112320.0,112310.0,1.44736]
[1756913862872,0.14556781,112320.0,112310.0,1.44736]
[1756913863276,0.24944781,112320.0,112310.0,1.44724]
[1756913864977,0.24944781,112320.0,112310.0,0.3638]
[1756913864978,0.84353113,112320.0,112310.0,0.3638]
[1756913865269,0.84353113,112320.0,112310.0,1.1972]
[1756913865270,1.07465037,112320.0,112310.0,1.1972]
[1756913865674,1.13872976,112320.0,112310.0,1.1972]
[1756913868171,1.13872976,112320.0,112310.0,0.003]
[1756913868377,0.06184,112300.0,112290.0,2.2429]
[1756913868579,0.72000451,112300.0,112290.0,1.882]
[1756913868774,0.68041838,112300.0,112290.0,2.71536]
[1756913869076,0.68041838,112300.0,112290.0,2.71524]
[1756913869265,0.74444464,112300.0,112290.0,2.71524]
[1756913870084,0.08633506,112300.0,112290.0,2.71524]
[1756913870377,0.74541357,112300.0,112290.0,2.71524]
[1756913871184,0.74641357,112300.0,112290.0,2.71524]
[1756913871880,0.68241838,112300.0,112290.0,2.71524]
[1756913872174,0.68241838,112300.0,112290.0,1.88188]
[1756913872379,0.76113859,112300.0,112290.0,2.71528]
[1756913873074,0.16572,112290.0,112280.0,0.3608]
[1756913873279,0.84348037,112290.0,112280.0,1.19416]
[1756913873581,0.89096883,112290.0,112280.0,1.19416]
[1756913874379,0.89196883,112290.0,112280.0,0.3608]
[1756913874579,0.16572,112280.0,112260.0,0.38176606]
[1756913874777,0.21364129,112270.0,112260.0,0.38166606]
[1756913874985,0.25526854,112270.0,112260.0,1.21502606]
[1756913875285,0.26410705,112270.0,112260.0,1.21502606]
[1756913876675,0.31202834,112270.0,112260.0,1.21502606]
[1756913876871,0.31202834,112270.0,112260.0,1.21802606]
[1756913877276,0.36903378,112270.0,112260.0,0.3638]
[1756913877578,0.36903378,112270.0,112260.0,1.19416]
[1756913877780,0.36903378,112270.0,112260.0,1.19516]
[1756913882480,0.32111249,112270.0,112260.0,1.19516]
[1756913884086,0.9631171,112270.0,112260.0,0.36172]
[1756913884286,0.9631171,112270.0,112260.0,1.19504]
[1756913884786,0.36903378,112270.0,112260.0,1.19504]
[1756913885786,0.31202834,112270.0,112260.0,1.19504]
[1756913885990,0.31318346,112270.0,112260.0,1.19504]
[1756913886190,0.20930346,112270.0,112260.0,1.19504]
[1756913889581,0.31318346,112270.0,112260.0,0.36172]
[1756913889781,0.31318346,112270.0,112260.0,1.19504]
[1756913890081,0.31318346,112270.0,112260.0,1.44504]
[1756913890082,0.09070366,112270.0,112260.0,1.44504]
[1756913890388,0.13862495,112270.0,112260.0,1.44504]
[1756913890590,0.09070366,112270.0,112260.0,2.03912332]
[1756913891293,0.09070366,112270.0,112260.0,2.04802116]
[1756913891678,0.09070366,112270.0,112260.0,2.03912332]
[1756913891884,0.09070366,112270.0,112260.0,1.44504]
[1756913892392,0.09070366,112270.0,112260.0,1.45398165]
[1756913892590,0.09070366,112270.0,112260.0,0.62066165]
[1756913892795,0.09070366,112270.0,112260.0,1.45398165]
[1756913892997,0.09070366,112270.0,112260.0,0.61172]
[1756913893289,0.09070366,112270.0,112260.0,1.445]
[1756913893489,0.09070366,112270.0,112260.0,2.0124449]
[1756913894983,0.09070366,112270.0,112260.0,2.2762449]
[1756913895987,0.09070366,112270.0,112260.0,1.4429649]
[1756913896280,0.09070366,112270.0,112260.0,2.2762449]
[1756913898393,0.13862495,112270.0,112260.0,2.2762449]
[1756913899094,0.13862495,112270.0,112260.0,2.2761249]
[1756913899585,0.19626495,112270.0,112260.0,2.2761249]
[1756913899987,0.19626495,112270.0,112260.0,2.2760849]
[1756913900190,0.19626495,112270.0,112260.0,1.7086]
[1756913900383,0.19626495,112270.0,112260.0,1.4428449]
[1756913900593,0.85985985,112270.0,112260.0,1.4586]
[1756913900992,0.29241495,112270.0,112260.0,1.4586]
[1756913901393,0.24449366,112270.0,112260.0,1.4586]
[1756913902188,0.09070366,112270.0,112260.0,2.0260449]
[1756913903182,0.02089296,112270.0,112260.0,2.2760449]
[1756913904495,0.02089296,112270.0,112260.0,2.2760049]
[1756913904697,0.02089296,112270.0,112260.0,2.0260049]
[1756913904995,0.02089296,112270.0,112260.0,2.0259649]
[1756913907689,0.02089296,112270.0,112260.0,1.45852]
[1756913907896,0.02089296,112270.0,112260.0,2.0259649]
[1756913908096,0.02089296,112270.0,112260.0,2.0259249]
[1756913909291,0.02089296,112270.0,112260.0,1.1928449]
[1756913909497,0.02089296,112270.0,112260.0,2.0258849]
[1756913909891,0.02089296,112270.0,112260.0,1.1928449]
[1756913910092,0.07853296,112270.0,112260.0,2.0258849]
[1756913910991,0.07853296,112270.0,112260.0,2.0258449]
[1756913911194,0.07853296,112270.0,112260.0,0.6254]
[1756913911394,0.42468296,112270.0,112260.0,1.4584]
[1756913911892,0.42468296,112270.0,112260.0,0.6254]
[1756913912189,0.42468296,112270.0,112260.0,1.4584]
[1756913912389,0.47260425,112270.0,112260.0,1.4584]
[1756913912792,0.48153026,112270.0,112260.0,1.1946]
[1756913914187,0.48153026,112270.0,112260.0,1.19452]
[1756913915503,0.5524736,112270.0,112260.0,1.19452]
[1756913918803,0.5524736,112270.0,112260.0,1.45832]
[1756913919707,1.1199185,112270.0,112260.0,0.36152]
[1756913920006,1.1199185,112270.0,112260.0,1.19444]
[1756913920795,1.07199721,112270.0,112260.0,1.19444]
[1756913921513,0.93023678,112270.0,112260.0,1.19444]
[1756913923005,0.93023678,112270.0,112260.0,0.36152]
[1756913923205,0.68023678,112270.0,112260.0,1.1944]